fUST/lending_fUST_20250405
["ID","MTS","AMOUNT","RATE_DAILY","PERIOD"]
[357170229,1743857445361,-500.0,0.00019452,2]
[357170230,1743857445370,-500.0,0.00019452,2]
[357170231,1743857445379,-630.27302641,0.00019452,2]
[357170232,1743857445389,-500.0,0.00019452,2]
[357170233,1743857445399,-511.76,0.00019452,2]
[357170234,1743857445408,-500.0,0.00019452,2]
[357170235,1743857445417,-167.95356669,0.00019452,2]
[357170236,1743857445426,-664.0,0.00019452,2]
[357170237,1743857445435,-500.0,0.00019452,2]
[357170238,1743857445444,-500.0,0.00019452,2]
[357170239,1743857445453,-500.0,0.00019452,2]
[357170240,1743857445462,-500.0,0.00019452,2]
[357170241,1743857445472,-500.0,0.00019452,2]
[357170242,1743857445481,-500.0,0.00019452,2]
[357170243,1743857445490,-500.0,0.00019452,2]
[357170244,1743857445499,-500.0,0.00019473,2]
[357170245,1743857445508,-160.0,0.00019569,2]
[357170246,1743857445517,-500.0,0.00019725,2]
[357170247,1743857445526,-150.7890527,0.00019726,2]
[357170248,1743857445535,-833.53,0.00019726,2]
[357170249,1743857445544,-500.0,0.00019726,2]
[357170250,1743857445553,-500.0,0.00019726,2]
[357170251,1743857445562,-500.0,0.00019726,2]
[357170252,1743857445571,-500.0,0.00019726,2]
[357170253,1743857445581,-353.87312502,0.00019726,2]
[357170254,1743857445590,-188.29,0.00019726,2]
[357170255,1743857445601,-272.55544679,0.00019726,2]
[357170256,1743857445688,-500.0,0.00019726,2]
[357170257,1743857445698,-500.0,0.00019726,2]
[357170258,1743857445708,-252.44,0.00019726,2]
[357170259,1743857445718,-500.0,0.00019726,2]
[357170260,1743857445727,-500.0,0.00019726,2]
[357170261,1743857445736,-500.0,0.00019726,2]
[357170262,1743857445747,-500.0,0.00019726,2]
[357170263,1743857445757,-500.0,0.00019726,2]
[357170264,1743857445767,-500.0,0.00019726,2]
[357170265,1743857445777,-19642.6,0.00019726,2]
[357170266,1743857445786,-500.0,0.00019726,2]
[357170267,1743857445796,-500.0,0.00019726,2]
[357170268,1743857445805,-282.09,0.00019726,2]
[357170269,1743857445815,-500.0,0.00019726,2]
[357170270,1743857445825,-500.0,0.00019726,2]
[357170271,1743857445834,-500.0,0.00019726,2]
[357170272,1743857445845,-233.09,0.00019726,2]
[357170273,1743857445854,-2125.0,0.00019726,2]
[357170274,1743857445864,-500.0,0.00019726,2]
[357170275,1743857445874,-423.97,0.00019726,2]
[357170276,1743857445884,-500.0,0.00019726,2]
[357170277,1743857445894,-500.0,0.00019726,2]
[357170278,1743857445904,-664.0,0.00019726,2]
[357170279,1743857445914,-500.0,0.00019726,2]
[357170280,1743857445923,-500.0,0.00019726,2]
[357170281,1743857445933,-500.0,0.00019726,2]
[357170282,1743857445943,-500.0,0.00019726,2]
[357170283,1743857445953,-6423.24925864,0.000199,2]
[357170284,1743857445963,-500.0,0.00019999,2]
[357170285,1743857445974,-500.0,0.00019999,2]
[357170286,1743857445984,-4999.0,0.0002,2]
[357170287,1743857445994,-160.0,0.0002,3]
[357170288,1743857446004,-833.53,0.0002,2]
[357170289,1743857446013,-500.0,0.0002,2]
[357170290,1743857446023,-500.0,0.0002,2]
[357170291,1743857446033,-500.0,0.0002,2]
[357170292,1743857446042,-500.0,0.0002,2]
[357170293,1743857446052,-160.0,0.0002,3]
[357170294,1743857446062,-500.0,0.0002,2]
[357170295,1743857446072,-646.67164405,0.0002,2]
[357170296,1743857446082,-500.0,0.0002,2]
[357170297,1743857446092,-500.0,0.0002,2]
[357170299,1743857446102,-500.0,0.0002,2]
[357170301,1743857446112,-500.0,0.0002,2]
[357170303,1743857446122,-500.0,0.0002,2]
[357170305,1743857446132,-19642.6,0.0002,2]
[357170307,1743857446143,-500.0,0.0002,2]
[357170309,1743857446153,-312.3,0.0002,2]
[357170311,1743857446163,-500.0,0.0002,2]
[357170313,1743857446174,-2125.0,0.0002,2]
[357170315,1743857446184,-267.36206685,0.0002,2]
[357170317,1743857446194,-500.0,0.0002,2]
[357170319,1743857446204,-500.0,0.0002,2]
[357170321,1743857446214,-664.0,0.0002,2]
[357170323,1743857446225,-500.0,0.0002,2]
[357170325,1743857446235,-500.0,0.0002,2]
[357170327,1743857446245,-2000.0,0.0002,4]
[357170330,1743857446255,-500.0,0.0002,2]
[357170333,1743857446265,-4590.84,0.00020163,2]
[357170336,1743857446275,-500.0,0.00020272,2]
[357170339,1743857446285,-833.53,0.00020273,2]
[357170340,1743857446295,-500.0,0.00020273,2]
[357170341,1743857446304,-500.0,0.00020273,2]
[357170342,1743857446314,-500.0,0.00020273,2]
[357170343,1743857446324,-500.0,0.00020273,2]
[357170344,1743857446333,-500.0,0.00020273,2]
[357170345,1743857446343,-500.0,0.00020273,2]
[357170346,1743857446353,-19642.6,0.00020273,2]
[357170347,1743857446363,-500.0,0.00020273,2]
[357170348,1743857446372,-154.53110444,0.00020273,2]
[357170349,1743857446382,-2125.0,0.00020273,2]
[357170350,1743857446392,-500.0,0.00020273,2]
[357170351,1743857446401,-500.0,0.00020273,2]
[357170352,1743857446411,-664.0,0.00020273,2]
[357170353,1743857446421,-500.0,0.00020273,2]
[357170354,1743857446431,-500.0,0.00020273,2]
[357170356,1743857446440,-160.0,0.00020308,2]
[357170357,1743857446450,-12522.71377557,0.00020308,2]
[357170358,1743857446460,-781.25,0.00020308,2]
[357170359,1743857446469,-160.0,0.00020308,2]
[357170360,1743857446480,-419.20823938,0.00020308,2]
[357170361,1743857446490,-160.0,0.00020308,2]
[357170362,1743857446500,-2298.78687313,0.00020339,3]
[357170363,1743857446510,-3000.0,0.00020376,2]
[357170364,1743857446519,-500.0,0.00020436,2]
[357170365,1743857446529,-4590.84,0.00020437,2]
[357170366,1743857446538,-10550.02,0.00020487,3]
[357170367,1743857446547,-5275.0,0.00020487,3]
[357170368,1743857446556,-2637.5,0.00020487,3]
[357170369,1743857446566,-1318.76,0.00020487,3]
[357170370,1743857446575,-659.38,0.00020487,3]
[357170371,1743857446584,-329.68,0.00020487,3]
[357170372,1743857446593,-6108.60689263,0.00020497,3]
[357170373,1743857446688,-14991.43310737,0.00020497,3]
[357170374,1743857446698,-151.0,0.000205,3]
[357170375,1743857446707,-160.0,0.00020507,3]
[357170376,1743857446717,-500.0,0.00020527,2]
[357170377,1743857446727,-553.35429246,0.00020527,2]
[357170378,1743857446737,-153.43675005,0.00020535,2]
[357170379,1743857446746,-833.53,0.00020547,2]
[357170380,1743857446756,-500.0,0.00020547,2]
[357170381,1743857446766,-500.0,0.00020547,2]
[357170382,1743857446776,-500.0,0.00020547,2]
[357170384,1743857446785,-500.0,0.00020547,2]
[357170386,1743857446795,-500.0,0.00020547,2]
[357170387,1743857446805,-500.0,0.00020547,2]
[357170389,1743857446814,-9900.11143677,0.00020547,2]
[357170390,1743857446887,-500.0,0.00019726,2]
[357170392,1743857446898,-503.85,0.0002,2]
[357170394,1743857446908,-4268.6276449,0.00020547,2]
[357170397,1743857446920,-5473.86091833,0.00020547,2]
[357170399,1743857446930,-500.0,0.00020547,2]
[357170400,1743857446940,-2125.0,0.00020547,2]
[357170401,1743857446951,-500.0,0.00020547,2]
[357170402,1743857446960,-500.0,0.00020547,2]
[357170403,1743857446970,-664.0,0.00020547,2]
[357170404,1743857446980,-500.0,0.00020547,2]
[357170405,1743857446990,-500.0,0.00020547,2]
[357170406,1743857446999,-151.499899,0.00020548,2]
[357170407,1743857447009,-261.18564673,0.0002059,2]
[357170408,1743857447103,-3255.9,0.0002059,2]
[357170409,1743857447126,-2906.16361168,0.0002059,2]
[357170410,1743857447136,-500.74568918,0.00020682,2]
[357170411,1743857447147,-151.0,0.000207,4]
[357170412,1743857447156,-603.86205554,0.000207,2]
[357170413,1743857447166,-500.0,0.000207,2]
[357170414,1743857447176,-4590.84,0.00020711,2]
[357170415,1743857447186,-397.0,0.00020771,2]
[357170416,1743857447263,-833.53,0.00020821,2]
[357170417,1743857447282,-500.0,0.00020821,2]
[357170418,1743857447291,-136.38465564,0.00020821,2]
[357170419,1743857447303,-263.26593272,0.00020821,2]
[357170420,1743857447322,-100.34941164,0.00020821,2]
[357170421,1743857447332,-500.0,0.00020821,2]
[357170422,1743857447341,-3.3391192,0.00020821,2]
[357170424,1743858147235,654.39,0.00025,120]
[357170425,1743858192562,930.39576144,0.00023,10]
[357170491,1743858632037,-298.234227,0.00018156,2]
[357170493,1743858632047,-225.5687012,0.00018159,2]
[357170495,1743858632056,-232.82688965,0.00018581,2]
[357170497,1743858632066,-269.27234674,0.00018853,2]
[357170499,1743858632076,-264.78046834,0.00018958,2]
[357170501,1743858632086,-200.74132307,0.00019078,2]
[357170503,1743858632095,-169.67,0.00019137,2]
[357170524,1743858632104,-300.0,0.00019146,2]
[357170527,1743858632225,-7816.20227494,0.00019147,2]
[357170530,1743858632236,-151.0,0.00019166,2]
[357170532,1743858632246,-151.0,0.00019166,2]
[357170534,1743858632255,-200.0,0.00019166,2]
[357170536,1743858632264,-155.18105681,0.00019173,2]
[357170538,1743858632274,-506.08037789,0.00019173,2]
[357170540,1743858632285,-500.0,0.00019173,2]
[357170542,1743858632294,-500.0,0.00019173,2]
[357170544,1743858632303,-500.0,0.00019173,2]
[357170546,1743858632312,-211.57573594,0.00019173,2]
[357170548,1743858632321,-500.0,0.00019173,2]
[357170550,1743858632331,-500.84812367,0.00019173,2]
[357170552,1743858632339,-501.25517294,0.00019173,2]
[357170554,1743858632348,-500.45091803,0.00019173,2]
[357170556,1743858632358,-214.82308992,0.00019173,2]
[357170558,1743858632367,-500.22770545,0.00019173,2]
[357170560,1743858632376,-500.98384765,0.00019173,2]
[357170562,1743858632386,-268.00264892,0.00019173,2]
[357170564,1743858632395,-406.82119247,0.00019173,2]
[357170566,1743858632404,-395.81679456,0.00019173,2]
[357170568,1743858632413,-177.40928761,0.00019173,2]
[357170570,1743858632423,-152.68756147,0.00019173,2]
[357170572,1743858632432,-644.40696268,0.00019173,2]
[357170574,1743858632442,-502.47879986,0.00019173,2]
[357170576,1743858632451,-269.89425465,0.00019173,2]
[357170578,1743858632460,-154.65227969,0.00019173,2]
[357170580,1743858632470,-408.46704743,0.00019173,2]
[357170582,1743858632480,-500.0,0.00019173,2]
[357170585,1743858632489,-500.53090816,0.00019173,2]
[357170587,1743858632499,-500.0,0.00019173,2]
[357170589,1743858632508,-500.0,0.00019173,2]
[357170591,1743858632518,-500.0,0.00019173,2]
[357170593,1743858632528,-500.0,0.00019173,2]
[357170595,1743858632538,-500.0,0.00019173,2]
[357170597,1743858632547,-500.59284897,0.00019173,2]
[357170599,1743858632556,-500.4044824,0.00019173,2]
[357170601,1743858632566,-500.0,0.00019173,2]
[357170603,1743858632575,-421.32394975,0.00019173,2]
[357170605,1743858632584,-160.0,0.00019177,2]
[357170607,1743858632594,-160.0,0.00019177,2]
[357170609,1743858632603,-255.31686626,0.00019177,2]
[357170611,1743858632612,-344.29156034,0.00019177,2]
[357170613,1743858632621,-348.55342244,0.00019177,2]
[357170615,1743858632632,-187.87932235,0.00019178,2]
[357170617,1743858632642,-505.78768838,0.00019178,2]
[357170619,1743858632651,-500.0,0.00019178,2]
[357170621,1743858632661,-500.0,0.00019178,2]
[357170623,1743858632670,-334.80987711,0.00019178,2]
[357170625,1743858632679,-314.13022231,0.00019178,2]
[357170627,1743858632689,-501.95784556,0.00019178,2]
[357170630,1743858632699,-502.22006905,0.00019178,2]
[357170632,1743858632708,-500.0,0.00019178,2]
[357170633,1743858632717,-501.0688447,0.00019178,2]
[357170636,1743858632727,-500.0,0.00019178,2]
[357170638,1743858632737,-501.24400622,0.00019178,2]
[357170640,1743858632746,-500.0,0.00019178,2]
[357170642,1743858632756,-500.0,0.00019178,2]
[357170644,1743858632766,-500.0,0.00019178,2]
[357170646,1743858632775,-500.0,0.00019178,2]
[357170648,1743858632784,-500.0,0.00019178,2]
[357170650,1743858632793,-500.0,0.00019178,2]
[357170652,1743858632803,-500.0,0.00019178,2]
[357170654,1743858632812,-500.0,0.00019178,2]
[357170656,1743858632820,-500.0,0.00019178,2]
[357170658,1743858632830,-500.0,0.00019178,2]
[357170660,1743858632839,-500.0,0.00019178,2]
[357170662,1743858632848,-500.0,0.00019178,2]
[357170664,1743858632858,-500.0,0.00019178,2]
[357170666,1743858632867,-500.0,0.00019178,2]
[357170668,1743858632876,-500.0,0.00019178,2]
[357170670,1743858632885,-500.0,0.00019178,2]
[357170672,1743858632894,-500.0,0.00019178,2]
[357170674,1743858632903,-500.0,0.00019178,2]
[357170676,1743858632913,-500.0,0.00019178,2]
[357170678,1743858632922,-500.0,0.00019178,2]
[357170680,1743858632931,-500.0,0.00019178,2]
[357170682,1743858632941,-500.0,0.00019178,2]
[357170684,1743858632950,-500.0,0.00019178,2]
[357170686,1743858632960,-500.0,0.00019178,2]
[357170688,1743858632969,-500.0,0.00019178,2]
[357170690,1743858632979,-500.0,0.00019178,2]
[357170692,1743858632989,-500.0,0.00019178,2]
[357170694,1743858632998,-500.0,0.00019178,2]
[357170696,1743858633007,-500.0,0.00019178,2]
[357170698,1743858633017,-500.0,0.00019178,2]
[357170700,1743858633026,-500.0,0.00019178,2]
[357170702,1743858633035,-500.0,0.00019178,2]
[357170704,1743858633044,-500.0,0.00019178,2]
[357170705,1743858633054,-500.0,0.00019178,2]
[357170706,1743858633063,-500.0,0.00019178,2]
[357170707,1743858633072,-500.0,0.00019178,2]
[357170708,1743858633082,-500.0,0.00019178,2]
[357170709,1743858633092,-500.0,0.00019178,2]
[357170710,1743858633101,-500.0,0.00019178,2]
[357170711,1743858633111,-366.6766531,0.00019178,2]
[357170712,1743858633120,-500.0,0.00019178,2]
[357170713,1743858633135,-500.0,0.00019178,2]
[357170714,1743858633144,-500.0,0.00019178,2]
[357170715,1743858633154,-500.0,0.00019178,2]
[357170716,1743858633165,-500.0,0.00019178,2]
[357170718,1743858633175,-500.0,0.00019178,2]
[357170720,1743858633184,-511.44629528,0.00019178,2]
[357170722,1743858633194,-500.0,0.00019178,2]
[357170724,1743858633204,-500.0,0.00019178,2]
[357170726,1743858633215,-500.0,0.00019178,2]
[357170728,1743858633225,-500.0,0.00019178,2]
[357170730,1743858633235,-522.81271608,0.00019178,2]
[357170732,1743858633244,-500.0,0.00019178,2]
[357170734,1743858633254,-372.90953133,0.00019178,2]
[357170736,1743858633264,-500.0,0.00019178,2]
[357170738,1743858633273,-526.44523794,0.00019178,2]
[357170740,1743858633283,-519.36333665,0.00019178,2]
[357170742,1743858633292,-500.0,0.00019178,2]
[357170744,1743858633302,-500.0,0.00019178,2]
[357170746,1743858633312,-403.29173566,0.00019178,2]
[357170748,1743858633321,-500.0,0.00019178,2]
[357170750,1743858633331,-500.0,0.00019178,2]
[357170752,1743858633341,-500.0,0.00019178,2]
[357170754,1743858633350,-500.0,0.00019178,2]
[357170756,1743858633360,-500.0,0.00019178,2]
[357170758,1743858633369,-500.0,0.00019178,2]
[357170760,1743858633380,-500.0,0.00019178,2]
[357170762,1743858633390,-500.0,0.00019178,2]
[357170764,1743858633400,-500.0,0.00019178,2]
[357170766,1743858633410,-500.0,0.00019178,2]
[357170768,1743858633420,-500.0,0.00019178,2]
[357170770,1743858633430,-500.0,0.00019178,2]
[357170772,1743858633439,-500.0,0.00019178,2]
[357170774,1743858633450,-500.0,0.00019178,2]
[357170776,1743858633460,-500.0,0.00019178,2]
[357170778,1743858633470,-500.0,0.00019178,2]
[357170780,1743858633480,-200.0,0.00019178,2]
[357170782,1743858633490,-500.0,0.00019178,2]
[357170784,1743858633500,-500.0,0.00019178,2]
[357170786,1743858633510,-500.0,0.00019178,2]
[357170788,1743858633520,-500.0,0.00019178,2]
[357170790,1743858633530,-500.0,0.00019178,2]
[357170792,1743858633540,-500.0,0.00019178,2]
[357170794,1743858633550,-500.0,0.00019178,2]
[357170796,1743858633560,-500.0,0.00019178,2]
[357170798,1743858633569,-500.0,0.00019178,2]
[357170800,1743858633579,-500.0,0.00019178,2]
[357170802,1743858633588,-500.0,0.00019178,2]
[357170804,1743858633597,-500.0,0.00019178,2]
[357170806,1743858633606,-500.0,0.00019178,2]
[357170808,1743858633616,-500.0,0.00019178,2]
[357170810,1743858633625,-500.0,0.00019178,2]
[357170812,1743858633635,-172.708232,0.00019178,2]
[357170814,1743858633644,-172.708232,0.00019178,2]
[357170816,1743858633654,-500.0,0.00019178,2]
[357170818,1743858633663,-230.18297306,0.00019178,2]
[357170821,1743858633673,-646.83,0.00019178,2]
[357170823,1743858633682,-151.0,0.00019178,2]
[357170825,1743858633692,-500.0,0.00019178,2]
[357170827,1743858633701,-500.0,0.00019178,2]
[357170829,1743858633711,-500.0,0.00019178,2]
[357170830,1743858633721,-500.0,0.00019178,2]
[357170833,1743858633731,-500.0,0.00019178,2]
[357170835,1743858633741,-500.0,0.00019178,2]
[357170837,1743858633751,-500.0,0.00019178,2]
[357170839,1743858633761,-500.0,0.00019178,2]
[357170840,1743858633770,-500.0,0.00019178,2]
[357170843,1743858633780,-500.0,0.00019178,2]
[357170845,1743858633790,-500.0,0.00019178,2]
[357170846,1743858633800,-500.0,0.00019178,2]
[357170848,1743858633810,-500.0,0.00019178,2]
[357170851,1743858633820,-608.11512771,0.00019178,2]
[357170853,1743858633830,-500.0,0.00019178,2]
[357170855,1743858633839,-161.7540364,0.00019178,2]
[357170856,1743858633848,-500.0,0.00019178,2]
[357170858,1743858633858,-596.53569869,0.00019178,2]
[357170861,1743858633867,-500.0,0.00019178,2]
[357170863,1743858633877,-500.0,0.00019178,2]
[357170865,1743858633887,-500.0,0.00019178,2]
[357170867,1743858633897,-500.0,0.00019178,2]
[357170869,1743858633907,-500.0,0.00019178,2]
[357170871,1743858633917,-500.0,0.00019178,2]
[357170873,1743858633926,-500.0,0.00019178,2]
[357170875,1743858633936,-500.0,0.00019178,2]
[357170877,1743858633945,-518.51108266,0.00019178,2]
[357170879,1743858633954,-489.37994536,0.00019178,2]
[357170881,1743858633963,-500.0,0.00019178,2]
[357170883,1743858633973,-500.0,0.00019178,2]
[357170884,1743858633982,-500.0,0.00019178,2]
[357170886,1743858633992,-500.0,0.00019178,2]
[357170888,1743858634002,-500.0,0.00019178,2]
[357170891,1743858634013,-511.29861196,0.00019178,2]
[357170893,1743858634022,-500.0,0.00019178,2]
[357170894,1743858634032,-500.0,0.00019178,2]
[357170896,1743858634041,-500.0,0.00019178,2]
[357170898,1743858634051,-500.0,0.00019178,2]
[357170900,1743858634060,-500.0,0.00019178,2]
[357170902,1743858634069,-500.0,0.00019178,2]
[357170904,1743858634079,-500.0,0.00019178,2]
[357170906,1743858634088,-500.0,0.00019178,2]
[357170908,1743858634098,-500.0,0.00019178,2]
[357170910,1743858634107,-500.0,0.00019178,2]
[357170921,1743858634117,-500.0,0.00019178,2]
[357170923,1743858634212,-500.0,0.00019178,2]
[357170925,1743858634222,-500.0,0.00019178,2]
[357170927,1743858634232,-500.0,0.00019178,2]
[357170929,1743858634242,-500.0,0.00019178,2]
[357170931,1743858634252,-511.3283417,0.00019178,2]
[357170933,1743858634261,-293.134021,0.00019178,2]
[357170935,1743858634272,-500.0,0.00019178,2]
[357170937,1743858634281,-500.0,0.00019178,2]
[357170939,1743858634290,-500.0,0.00019178,2]
[357170941,1743858634299,-500.0,0.00019178,2]
[357170943,1743858634308,-500.0,0.00019178,2]
[357170945,1743858634319,-529.7799476,0.00019178,2]
[357170947,1743858634329,-500.0,0.00019178,2]
[357170949,1743858634339,-500.0,0.00019178,2]
[357170951,1743858634348,-151.0,0.00019178,2]
[357170953,1743858634359,-151.0,0.00019178,2]
[357170955,1743858634369,-500.0,0.00019178,2]
[357170957,1743858634379,-500.0,0.00019178,2]
[357170959,1743858634389,-500.0,0.00019178,2]
[357170961,1743858634399,-500.0,0.00019178,2]
[357170963,1743858634410,-1749.15,0.00019178,2]
[357170965,1743858634419,-500.0,0.00019178,2]
[357170967,1743858634429,-299.12110271,0.00019178,2]
[357170969,1743858634439,-500.0,0.00019178,2]
[357170971,1743858634449,-510.19843932,0.00019178,2]
[357170973,1743858634458,-500.0,0.00019178,2]
[357170975,1743858634468,-516.67100061,0.00019178,2]
[357170977,1743858634478,-500.0,0.00019178,2]
[357170979,1743858634488,-500.0,0.00019178,2]
[357170981,1743858634498,-508.79,0.00019178,2]
[357170983,1743858634507,-500.0,0.00019178,2]
[357170985,1743858634516,-500.0,0.00019178,2]
[357170987,1743858634526,-500.0,0.00019178,2]
[357170989,1743858634536,-1750.68,0.00019178,2]
[357170991,1743858634546,-509.52094482,0.00019178,2]
[357170992,1743858634555,-500.0,0.00019178,2]
[357170993,1743858634564,-854.97,0.00019178,2]
[357170994,1743858634573,-500.0,0.00019178,2]
[357170995,1743858634582,-3194.54,0.00019178,2]
[357170996,1743858634591,-500.0,0.00019178,2]
[357170997,1743858634600,-500.0,0.00019178,2]
[357170998,1743858634609,-500.0,0.00019178,2]
[357170999,1743858634618,-500.0,0.00019178,2]
[357171000,1743858634627,-500.0,0.00019178,2]
[357171001,1743858634636,-500.0,0.00019178,2]
[357171002,1743858634645,-500.0,0.00019178,2]
[357171003,1743858634654,-500.0,0.00019178,2]
[357171004,1743858634663,-510.72225835,0.00019178,2]
[357171005,1743858634672,-500.0,0.00019178,2]
[357171006,1743858634681,-500.0,0.00019178,2]
[357171007,1743858634690,-500.0,0.00019178,2]
[357171008,1743858634699,-500.0,0.00019178,2]
[357171009,1743858634708,-500.0,0.00019178,2]
[357171010,1743858634718,-549.57,0.00019178,2]
[357171011,1743858634728,-500.0,0.00019178,2]
[357171013,1743858634738,-1304.9,0.00019178,2]
[357171014,1743858634747,-500.0,0.00019178,2]
[357171016,1743858634757,-500.0,0.00019178,2]
[357171018,1743858634766,-808.65,0.00019178,2]
[357171019,1743858634775,-500.0,0.00019178,2]
[357171021,1743858634784,-500.0,0.00019178,2]
[357171022,1743858634794,-500.0,0.00019178,2]
[357171023,1743858634803,-500.0,0.00019178,2]
[357171025,1743858634812,-500.0,0.00019178,2]
[357171026,1743858634822,-500.0,0.00019178,2]
[357171027,1743858634831,-500.0,0.00019178,2]
[357171028,1743858634841,-500.0,0.00019178,2]
[357171029,1743858634851,-500.0,0.00019178,2]
[357171030,1743858634860,-1716.09,0.00019178,2]
[357171031,1743858634869,-500.0,0.00019178,2]
[357171032,1743858634879,-2331.95,0.00019178,2]
[357171033,1743858634888,-500.0,0.00019178,2]
[357171034,1743858634898,-500.0,0.00019178,2]
[357171035,1743858634908,-500.0,0.00019178,2]
[357171036,1743858634917,-500.0,0.00019178,2]
[357171037,1743858634927,-284.90097032,0.00019178,2]
[357171038,1743858634936,-500.0,0.00019178,2]
[357171039,1743858634946,-500.0,0.00019178,2]
[357171040,1743858634955,-500.0,0.00019178,2]
[357171041,1743858634965,-500.0,0.00019178,2]
[357171042,1743858634974,-500.0,0.00019178,2]
[357171043,1743858634983,-500.0,0.00019178,2]
[357171044,1743858634992,-500.0,0.00019178,2]
[357171045,1743858635001,-500.0,0.00019178,2]
[357171046,1743858635011,-505.66193343,0.00019178,2]
[357171047,1743858635020,-500.0,0.00019178,2]
[357171048,1743858635029,-500.0,0.00019178,2]
[357171049,1743858635039,-500.0,0.00019178,2]
[357171050,1743858635048,-776.09,0.00019178,2]
[357171051,1743858635057,-500.0,0.00019178,2]
[357171052,1743858635067,-500.0,0.00019178,2]
[357171053,1743858635076,-590.42,0.00019178,2]
[357171054,1743858635086,-500.0,0.00019178,2]
[357171055,1743858635095,-624.89,0.00019178,2]
[357171056,1743858635105,-151.0,0.00019178,2]
[357171057,1743858635114,-500.0,0.00019178,2]
[357171058,1743858635124,-500.0,0.00019178,2]
[357171059,1743858635136,-500.0,0.00019178,2]
[357171060,1743858635146,-66310.53,0.00019178,2]
[357171061,1743858635156,-500.0,0.00019178,2]
[357171062,1743858635165,-670.7,0.00019178,2]
[357171063,1743858635177,-500.0,0.00019178,2]
[357171064,1743858635186,-901.27,0.00019178,2]
[357171065,1743858635196,-500.0,0.00019178,2]
[357171066,1743858635206,-500.0,0.00019178,2]
[357171067,1743858635215,-500.0,0.00019178,2]
[357171068,1743858635223,-500.0,0.00019178,2]
[357171069,1743858635233,-500.0,0.00019178,2]
[357171070,1743858635242,-500.0,0.00019178,2]
[357171071,1743858635251,-500.0,0.00019178,2]
[357171072,1743858635260,-500.0,0.00019178,2]
[357171073,1743858635269,-500.0,0.00019178,2]
[357171074,1743858635278,-500.0,0.00019178,2]
[357171075,1743858635287,-500.0,0.00019178,2]
[357171076,1743858635296,-631.0,0.00019178,2]
[357171077,1743858635305,-500.0,0.00019178,2]
[357171078,1743858635314,-151.0,0.00019178,2]
[357171079,1743858635323,-500.0,0.00019178,2]
[357171080,1743858635333,-500.0,0.00019178,2]
[357171081,1743858635342,-500.0,0.00019178,2]
[357171082,1743858635351,-500.0,0.00019178,2]
[357171083,1743858635361,-500.0,0.00019178,2]
[357171084,1743858635370,-500.0,0.00019178,2]
[357171085,1743858635380,-500.0,0.00019178,2]
[357171086,1743858635389,-518.57994697,0.00019178,2]
[357171087,1743858635400,-500.0,0.00019178,2]
[357171088,1743858635410,-500.0,0.00019178,2]
[357171089,1743858635420,-500.0,0.00019178,2]
[357171090,1743858635431,-505.36435046,0.00019178,2]
[357171091,1743858635440,-500.0,0.00019178,2]